[Event "Titled Tuesday Blitz April 4 Early 2023"]
[White "Zhao, Jun"]
[Black "Adla, Diego"]
[WhiteFideId "8602522"]
[BlackFideId "100072"]
[WhiteElo "2547"]
[BlackElo "2377"]
[Result "1/2-1/2"]
[Round "08"]
[TimeControl "180+2"]
[Date "2023.04.04"]
[WhiteClock "0:00:03"]
[BlackClock "0:00:15"]

1. e4 {[%clk 0:02:53]}  e5 {[%clk 0:02:59]} 2. Nf3 {[%clk 0:02:53]}  Nc6 {[%clk 0:02:58]} 3. Bb5 {[%clk 0:02:53]}  Bc5 {[%clk 0:02:57]} 4. O-O {[%clk 0:02:51]}  Qf6 {[%clk 0:02:57]} 5. c3 {[%clk 0:02:48]}  Nge7 {[%clk 0:02:55]} 6. d3 {[%clk 0:02:43]}  h6 {[%clk 0:02:53]} 7. Be3 {[%clk 0:02:43]}  Bb6 {[%clk 0:02:52]} 8. d4 {[%clk 0:02:40]}  O-O {[%clk 0:02:46]} 9. Re1 {[%clk 0:02:34]}  d6 {[%clk 0:02:41]} 10. h3 {[%clk 0:02:32]}  Ng6 {[%clk 0:02:33]} 11. Bxc6 {[%clk 0:02:28]}  bxc6 {[%clk 0:02:33]} 12. Nbd2 {[%clk 0:02:29]}  Bd7 {[%clk 0:02:20]} 13. a4 {[%clk 0:02:26]}  exd4 {[%clk 0:02:12]} 14. Bxd4 {[%clk 0:02:21]}  Bxd4 {[%clk 0:02:11]} 15. cxd4 {[%clk 0:02:19]}  Rab8 {[%clk 0:02:06]} 16. Qc2 {[%clk 0:02:17]}  Nf4 {[%clk 0:02:03]} 17. e5 {[%clk 0:01:59]}  Qg6 {[%clk 0:01:54]} 18. Qxg6 {[%clk 0:01:58]}  Nxg6 {[%clk 0:01:55]} 19. exd6 {[%clk 0:01:56]}  cxd6 {[%clk 0:01:54]} 20. Nc4 {[%clk 0:01:56]}  Nf4 {[%clk 0:01:48]} 21. Re7 {[%clk 0:01:50]}  Be6 {[%clk 0:01:45]} 22. Nxd6 {[%clk 0:01:49]}  a5 {[%clk 0:01:39]} 23. Ra7 {[%clk 0:01:43]}  Rfd8 {[%clk 0:01:30]} 24. Ne4 {[%clk 0:01:38]}  Bd5 {[%clk 0:01:24]} 25. Ned2 {[%clk 0:01:20]}  Rxb2 {[%clk 0:01:21]} 26. Rxa5 {[%clk 0:01:20]}  Ne2+ {[%clk 0:01:08]} 27. Kf1 {[%clk 0:01:08]}  Nxd4 {[%clk 0:01:08]} 28. Nxd4 {[%clk 0:01:05]}  Rxd2 {[%clk 0:01:08]} 29. Nf5 {[%clk 0:01:01]}  Re8 {[%clk 0:01:01]} 30. Ne3 {[%clk 0:01:00]}  Be4 {[%clk 0:00:54]} 31. Rc5 {[%clk 0:00:50]}  Rb8 {[%clk 0:00:53]} 32. a5 {[%clk 0:00:35]}  Rbb2 {[%clk 0:00:53]} 33. a6 {[%clk 0:00:32]}  Rxf2+ {[%clk 0:00:52]} 34. Kg1 {[%clk 0:00:32]}  Ra2 {[%clk 0:00:50]} 35. Ra5 {[%clk 0:00:31]}  Rxa1+ {[%clk 0:00:47]} 36. Rxa1 {[%clk 0:00:30]}  Re2 {[%clk 0:00:47]} 37. a7 {[%clk 0:00:21]}  c5 {[%clk 0:00:47]} 38. a8=Q+ {[%clk 0:00:21]}  Bxa8 {[%clk 0:00:48]} 39. Rxa8+ {[%clk 0:00:21]}  Kh7 {[%clk 0:00:48]} 40. Nc4 {[%clk 0:00:21]}  f5 {[%clk 0:00:41]} 41. Rc8 {[%clk 0:00:20]}  Rc2 {[%clk 0:00:40]} 42. Rxc5 {[%clk 0:00:21]}  f4 {[%clk 0:00:41]} 43. Rc6 {[%clk 0:00:19]}  g5 {[%clk 0:00:34]} 44. Ne5 {[%clk 0:00:19]}  Rxc6 {[%clk 0:00:31]} 45. Nxc6 {[%clk 0:00:19]}  Kg6 {[%clk 0:00:32]} 46. Kf2 {[%clk 0:00:19]}  Kf5 {[%clk 0:00:32]} 47. Kf3 {[%clk 0:00:19]}  h5 {[%clk 0:00:32]} 48. Ne7+ {[%clk 0:00:19]}  Kf6 {[%clk 0:00:32]} 49. Nd5+ {[%clk 0:00:19]}  Ke5 {[%clk 0:00:32]} 50. Nc3 {[%clk 0:00:17]}  Kf5 {[%clk 0:00:32]} 51. Nd1 {[%clk 0:00:13]}  g4+ {[%clk 0:00:32]} 52. hxg4+ {[%clk 0:00:13]}  hxg4+ {[%clk 0:00:32]} 53. Kf2 {[%clk 0:00:14]}  Ke4 {[%clk 0:00:32]} 54. Nc3+ {[%clk 0:00:14]}  Kd3 {[%clk 0:00:31]} 55. Nd5 {[%clk 0:00:14]}  Ke4 {[%clk 0:00:31]} 56. Nf6+ {[%clk 0:00:15]}  Kf5 {[%clk 0:00:31]} 57. Nd7 {[%clk 0:00:15]}  Ke6 {[%clk 0:00:30]} 58. Nc5+ {[%clk 0:00:15]}  Kd5 {[%clk 0:00:30]} 59. Nb3 {[%clk 0:00:14]}  Ke4 {[%clk 0:00:28]} 60. Na5 {[%clk 0:00:14]}  Kd4 {[%clk 0:00:27]} 61. Nb7 {[%clk 0:00:15]}  Ke4 {[%clk 0:00:27]} 62. Nd8 {[%clk 0:00:15]}  Kf5 {[%clk 0:00:27]} 63. Nf7 {[%clk 0:00:15]}  Kf6 {[%clk 0:00:26]} 64. Nd6 {[%clk 0:00:15]}  Ke5 {[%clk 0:00:26]} 65. Nb5 {[%clk 0:00:16]}  Ke4 {[%clk 0:00:25]} 66. Kf1 {[%clk 0:00:14]}  Ke3 {[%clk 0:00:24]} 67. Nd6 {[%clk 0:00:13]}  Kd4 {[%clk 0:00:19]} 68. Nf7 {[%clk 0:00:13]}  Ke4 {[%clk 0:00:18]} 69. Nh6 {[%clk 0:00:12]}  g3 {[%clk 0:00:15]} 70. Ke2 {[%clk 0:00:11]}  f3+ {[%clk 0:00:15]} 71. gxf3+ {[%clk 0:00:11]}  Kf4 {[%clk 0:00:16]} 72. Ng4 {[%clk 0:00:03]}  g2 {[%clk 0:00:15]} 73. Kf2 {[%clk 0:00:03]}  g1=Q+ {[%clk 0:00:14]} 74. Kxg1 {[%clk 0:00:03]}  Kxf3 {[%clk 0:00:15]} 1/2-1/2


[Site "https://www.chess.com"]

[Event "Titled Tuesday Blitz April 4 Early 2023"]
[White "Flores, Diego"]
[Black "Gabdrakhmanov, Azat"]
[WhiteFideId "108049"]
[BlackFideId "34189197"]
[WhiteElo "2613"]
[BlackElo "2306"]
[Result "1-0"]
[Round "08"]
[TimeControl "180+2"]
[Date "2023.04.04"]
[WhiteClock "0:00:43"]
[BlackClock "0:00:03"]

1. c4 {[%clk 0:03:00]}  Nf6 {[%clk 0:02:59]} 2. Nc3 {[%clk 0:02:59]}  d6 {[%clk 0:02:59]} 3. g3 {[%clk 0:02:58]}  g6 {[%clk 0:02:58]} 4. Bg2 {[%clk 0:02:59]}  Bg7 {[%clk 0:02:59]} 5. e4 {[%clk 0:03:00]}  O-O {[%clk 0:02:59]} 6. Nge2 {[%clk 0:03:00]}  e5 {[%clk 0:02:58]} 7. d3 {[%clk 0:03:01]}  Nc6 {[%clk 0:02:57]} 8. O-O {[%clk 0:03:01]}  Nd4 {[%clk 0:02:56]} 9. Nxd4 {[%clk 0:02:53]}  exd4 {[%clk 0:02:57]} 10. Ne2 {[%clk 0:02:53]}  c5 {[%clk 0:02:56]} 11. b4 {[%clk 0:02:51]}  Nd7 {[%clk 0:02:39]} 12. Rb1 {[%clk 0:02:50]}  cxb4 {[%clk 0:02:26]} 13. Rxb4 {[%clk 0:02:45]}  Qa5 {[%clk 0:02:19]} 14. Rb5 {[%clk 0:02:25]}  Qxa2 {[%clk 0:02:12]} 15. Rd5 {[%clk 0:02:12]}  Nb6 {[%clk 0:01:12]} 16. Rxd6 {[%clk 0:02:08]}  Bg4 {[%clk 0:01:06]} 17. f3 {[%clk 0:02:03]}  Be6 {[%clk 0:01:05]} 18. Nf4 {[%clk 0:01:33]}  Rfd8 {[%clk 0:01:02]} 19. Rxe6 {[%clk 0:01:30]}  fxe6 {[%clk 0:01:00]} 20. Nxe6 {[%clk 0:01:30]}  Qa4 {[%clk 0:00:53]} 21. Nxd8 {[%clk 0:01:11]}  Rxd8 {[%clk 0:00:42]} 22. Bg5 {[%clk 0:01:10]}  Qxd1 {[%clk 0:00:24]} 23. Rxd1 {[%clk 0:01:11]}  Rc8 {[%clk 0:00:24]} 24. Ra1 {[%clk 0:01:02]}  a6 {[%clk 0:00:22]} 25. Rb1 {[%clk 0:01:02]}  Na4 {[%clk 0:00:16]} 26. Bh3 {[%clk 0:01:02]}  Re8 {[%clk 0:00:08]} 27. Bd7 {[%clk 0:01:02]}  Nc3 {[%clk 0:00:06]} 28. Rxb7 {[%clk 0:00:59]}  Rf8 {[%clk 0:00:06]} 29. Be7 {[%clk 0:00:51]}  Ra8 {[%clk 0:00:05]} 30. c5 {[%clk 0:00:48]}  a5 {[%clk 0:00:05]} 31. c6 {[%clk 0:00:48]}  Be5 {[%clk 0:00:05]} 32. c7 {[%clk 0:00:47]}  Bxc7 {[%clk 0:00:06]} 33. Rxc7 {[%clk 0:00:48]}  a4 {[%clk 0:00:07]} 34. Be6+ {[%clk 0:00:46]}  Kg7 {[%clk 0:00:06]} 35. Bg5+ {[%clk 0:00:46]}  Kf8 {[%clk 0:00:06]} 36. Rf7+ {[%clk 0:00:44]}  Ke8 {[%clk 0:00:06]} 37. Rxh7 {[%clk 0:00:44]}  Ne2+ {[%clk 0:00:04]} 38. Kf2 {[%clk 0:00:44]}  Kf8 {[%clk 0:00:05]} 39. Bf6 {[%clk 0:00:43]}  Nf4 {[%clk 0:00:03]} 40. Rh8# {[%clk 0:00:43]} 1-0


[Site "https://www.chess.com"]

[Event "Titled Tuesday Blitz April 4 Early 2023"]
[White "Dehtiarov, Roman"]
[Black "Ahn, Hongjin"]
[WhiteFideId "14186640"]
[BlackFideId "13201492"]
[WhiteElo "2189"]
[BlackElo "2182"]
[Result "1-0"]
[Round "08"]
[TimeControl "180+2"]
[Date "2023.04.04"]
[WhiteClock "0:00:07"]
[BlackClock "0:00:01"]

1. d4 {[%clk 0:03:00]}  d5 {[%clk 0:02:59]} 2. c4 {[%clk 0:02:58]}  e6 {[%clk 0:02:59]} 3. Nc3 {[%clk 0:02:58]}  Bb4 {[%clk 0:02:59]} 4. cxd5 {[%clk 0:02:56]}  exd5 {[%clk 0:03:00]} 5. Nf3 {[%clk 0:02:56]}  Ne7 {[%clk 0:02:58]} 6. Bf4 {[%clk 0:02:55]}  O-O {[%clk 0:02:57]} 7. e3 {[%clk 0:02:55]}  c6 {[%clk 0:02:58]} 8. Bd3 {[%clk 0:02:55]}  Bf5 {[%clk 0:02:58]} 9. O-O {[%clk 0:02:54]}  Nd7 {[%clk 0:02:57]} 10. a3 {[%clk 0:02:53]}  Ba5 {[%clk 0:02:56]} 11. Bg3 {[%clk 0:02:52]}  Bc7 {[%clk 0:02:54]} 12. b4 {[%clk 0:02:51]}  Nf6 {[%clk 0:02:50]} 13. Rc1 {[%clk 0:02:49]}  a6 {[%clk 0:02:47]} 14. Qc2 {[%clk 0:02:46]}  Bxd3 {[%clk 0:02:40]} 15. Qxd3 {[%clk 0:02:47]}  Bxg3 {[%clk 0:02:38]} 16. hxg3 {[%clk 0:02:47]}  Re8 {[%clk 0:02:39]} 17. Rc2 {[%clk 0:02:46]}  Qc8 {[%clk 0:02:31]} 18. Rfc1 {[%clk 0:02:45]}  Nf5 {[%clk 0:02:26]} 19. Na4 {[%clk 0:02:43]}  Nd6 {[%clk 0:02:23]} 20. Nb6 {[%clk 0:02:43]}  Qd8 {[%clk 0:02:23]} 21. Nxa8 {[%clk 0:02:43]}  Qxa8 {[%clk 0:02:23]} 22. Ne5 {[%clk 0:02:42]}  Nfe4 {[%clk 0:02:22]} 23. Nd7 {[%clk 0:02:36]}  Qd8 {[%clk 0:02:03]} 24. Nc5 {[%clk 0:02:35]}  Nf6 {[%clk 0:02:03]} 25. a4 {[%clk 0:02:33]}  h5 {[%clk 0:02:02]} 26. b5 {[%clk 0:02:31]}  axb5 {[%clk 0:02:02]} 27. axb5 {[%clk 0:02:32]}  Ng4 {[%clk 0:01:56]} 28. Nxb7 {[%clk 0:02:21]}  Nxb7 {[%clk 0:01:55]} 29. bxc6 {[%clk 0:02:21]}  Nd6 {[%clk 0:01:53]} 30. c7 {[%clk 0:02:22]}  Qd7 {[%clk 0:01:52]} 31. Rb2 {[%clk 0:02:08]}  Nf6 {[%clk 0:01:45]} 32. Rb8 {[%clk 0:01:53]}  Nc8 {[%clk 0:01:45]} 33. Qa6 {[%clk 0:01:51]}  Ne4 {[%clk 0:01:43]} 34. Qc6 {[%clk 0:01:41]}  Qe7 {[%clk 0:01:40]} 35. Rcb1 {[%clk 0:01:24]}  Ned6 {[%clk 0:01:12]} 36. Ra1 {[%clk 0:01:01]}  g6 {[%clk 0:01:03]} 37. Raa8 {[%clk 0:01:00]}  Kg7 {[%clk 0:00:56]} 38. Qxd5 {[%clk 0:00:55]}  Qxc7 {[%clk 0:00:56]} 39. Qc5 {[%clk 0:00:55]}  Qd7 {[%clk 0:00:50]} 40. Qc3 {[%clk 0:00:46]}  Kh7 {[%clk 0:00:38]} 41. f3 {[%clk 0:00:44]}  Qe6 {[%clk 0:00:30]} 42. e4 {[%clk 0:00:42]}  Nb6 {[%clk 0:00:15]} 43. Rxe8 {[%clk 0:00:17]}  Nxe8 {[%clk 0:00:15]} 44. Ra6 {[%clk 0:00:18]}  Qd6 {[%clk 0:00:10]} 45. e5 {[%clk 0:00:16]}  Qb8 {[%clk 0:00:07]} 46. Qb4 {[%clk 0:00:12]}  Qc8 {[%clk 0:00:01]} 47. Rxb6 {[%clk 0:00:10]}  Qc1+ {[%clk 0:00:01]} 48. Kh2 {[%clk 0:00:10]}  h4 {[%clk 0:00:02]} 49. Qb1 {[%clk 0:00:09]}  hxg3+ {[%clk 0:00:02]} 50. Kxg3 {[%clk 0:00:10]}  Qg5+ {[%clk 0:00:02]} 51. Kf2 {[%clk 0:00:10]}  Qh4+ {[%clk 0:00:02]} 52. Ke2 {[%clk 0:00:10]}  Ng7 {[%clk 0:00:02]} 53. Qe4 {[%clk 0:00:08]}  Qg3 {[%clk 0:00:02]} 54. Qg4 {[%clk 0:00:08]}  Qh2 {[%clk 0:00:02]} 55. e6 {[%clk 0:00:08]}  Nxe6 {[%clk 0:00:01]} 56. Rb7 {[%clk 0:00:07]} 1-0


[Site "https://www.chess.com"]

[Event "Titled Tuesday Blitz April 4 Early 2023"]
[White "Kilic, Eray"]
[Black "TimGrutter03"]
[WhiteFideId "44517173"]
[WhiteElo "2328"]
[BlackElo "2567"]
[Result "1-0"]
[Round "08"]
[TimeControl "180+2"]
[Date "2023.04.04"]
[WhiteClock "0:01:05"]
[BlackClock "0:00:02"]

1. e4 {[%clk 0:03:00]}  g6 {[%clk 0:03:00]} 2. d4 {[%clk 0:03:00]}  Bg7 {[%clk 0:03:00]} 3. Nc3 {[%clk 0:03:01]}  d6 {[%clk 0:03:00]} 4. f4 {[%clk 0:03:01]}  a6 {[%clk 0:02:59]} 5. Nf3 {[%clk 0:03:00]}  b5 {[%clk 0:03:00]} 6. Bd3 {[%clk 0:03:00]}  b4 {[%clk 0:02:59]} 7. Nb1 {[%clk 0:02:59]}  Bb7 {[%clk 0:02:58]} 8. O-O {[%clk 0:02:59]}  e6 {[%clk 0:02:55]} 9. Qe2 {[%clk 0:02:58]}  Ne7 {[%clk 0:02:55]} 10. c3 {[%clk 0:02:58]}  bxc3 {[%clk 0:02:51]} 11. bxc3 {[%clk 0:02:54]}  O-O {[%clk 0:02:51]} 12. Nbd2 {[%clk 0:02:54]}  c5 {[%clk 0:02:46]} 13. Rb1 {[%clk 0:02:53]}  Qc8 {[%clk 0:02:38]} 14. e5 {[%clk 0:02:50]}  Rd8 {[%clk 0:02:21]} 15. Ne4 {[%clk 0:02:47]}  Bxe4 {[%clk 0:02:13]} 16. Bxe4 {[%clk 0:02:45]}  d5 {[%clk 0:02:08]} 17. Bc2 {[%clk 0:02:40]}  cxd4 {[%clk 0:02:03]} 18. cxd4 {[%clk 0:02:38]}  Nbc6 {[%clk 0:02:03]} 19. Ba3 {[%clk 0:02:36]}  Nf5 {[%clk 0:02:00]} 20. Bxf5 {[%clk 0:02:35]}  exf5 {[%clk 0:01:52]} 21. Rfc1 {[%clk 0:02:34]}  Qd7 {[%clk 0:01:42]} 22. Bc5 {[%clk 0:02:07]}  Bf8 {[%clk 0:01:39]} 23. Rb6 {[%clk 0:02:03]}  Na5 {[%clk 0:01:20]} 24. Bxf8 {[%clk 0:01:53]}  Rxf8 {[%clk 0:01:16]} 25. Rd6 {[%clk 0:01:51]}  Qb7 {[%clk 0:01:11]} 26. e6 {[%clk 0:01:42]}  Nc4 {[%clk 0:01:04]} 27. Rd7 {[%clk 0:01:39]}  Qb6 {[%clk 0:00:44]} 28. exf7+ {[%clk 0:01:27]}  Rxf7 {[%clk 0:00:37]} 29. Rxd5 {[%clk 0:01:26]}  Nd6 {[%clk 0:00:14]} 30. Qe6 {[%clk 0:01:25]}  Nc4 {[%clk 0:00:06]} 31. Qxb6 {[%clk 0:01:21]}  Nxb6 {[%clk 0:00:07]} 32. Rd6 {[%clk 0:01:22]}  Rb8 {[%clk 0:00:01]} 33. Ne5 {[%clk 0:01:18]}  Rfb7 {[%clk 0:00:01]} 34. d5 {[%clk 0:01:11]}  Na4 {[%clk 0:00:01]} 35. Rdc6 {[%clk 0:01:10]}  Rb1 {[%clk 0:00:01]} 36. Rxb1 {[%clk 0:01:07]}  Rxb1+ {[%clk 0:00:02]} 37. Kf2 {[%clk 0:01:07]}  Rb2+ {[%clk 0:00:02]} 38. Kg3 {[%clk 0:01:07]}  Rxa2 {[%clk 0:00:03]} 39. d6 {[%clk 0:01:07]}  Rd2 {[%clk 0:00:03]} 40. Rc8+ {[%clk 0:01:05]}  Kg7 {[%clk 0:00:04]} 41. d7 {[%clk 0:01:05]}  Nc5 {[%clk 0:00:02]} 42. Rxc5 {[%clk 0:01:05]} 1-0


[Site "https://www.chess.com"]

[Event "Titled Tuesday Blitz April 4 Early 2023"]
[White "Devaev, Alexander"]
[Black "Rohith Krishna S"]
[WhiteFideId "4169395"]
[BlackFideId "46617051"]
[WhiteElo "2204"]
[BlackElo "2270"]
[Result "0-1"]
[Round "08"]
[TimeControl "180+2"]
[Date "2023.04.04"]
[WhiteClock "0:00:07"]
[BlackClock "0:00:29"]

1. d4 {[%clk 0:02:54]}  d5 {[%clk 0:02:58]} 2. c4 {[%clk 0:02:54]}  e6 {[%clk 0:02:58]} 3. Nc3 {[%clk 0:02:54]}  Nf6 {[%clk 0:02:58]} 4. Bg5 {[%clk 0:02:54]}  Bb4 {[%clk 0:02:57]} 5. Nf3 {[%clk 0:02:44]}  O-O {[%clk 0:02:56]} 6. e3 {[%clk 0:02:42]}  a6 {[%clk 0:02:55]} 7. Qc2 {[%clk 0:02:39]}  Nbd7 {[%clk 0:02:50]} 8. a3 {[%clk 0:02:37]}  Be7 {[%clk 0:02:51]} 9. Rd1 {[%clk 0:02:33]}  h6 {[%clk 0:02:50]} 10. Bh4 {[%clk 0:02:32]}  c6 {[%clk 0:02:50]} 11. cxd5 {[%clk 0:02:20]}  cxd5 {[%clk 0:02:50]} 12. Bd3 {[%clk 0:02:19]}  b5 {[%clk 0:02:49]} 13. O-O {[%clk 0:02:19]}  Bb7 {[%clk 0:02:49]} 14. Ne5 {[%clk 0:01:36]}  Rc8 {[%clk 0:02:47]} 15. Nxd7 {[%clk 0:01:30]}  Qxd7 {[%clk 0:02:46]} 16. Rc1 {[%clk 0:01:26]}  Rc6 {[%clk 0:02:35]} 17. b4 {[%clk 0:01:15]}  Rfc8 {[%clk 0:02:34]} 18. Qb2 {[%clk 0:01:16]}  Qc7 {[%clk 0:02:31]} 19. Ne2 {[%clk 0:01:11]}  Bd6 {[%clk 0:02:13]} 20. Bxf6 {[%clk 0:00:50]}  gxf6 {[%clk 0:02:08]} 21. g3 {[%clk 0:00:49]}  f5 {[%clk 0:02:08]} 22. Rxc6 {[%clk 0:00:47]}  Bxc6 {[%clk 0:02:08]} 23. Rc1 {[%clk 0:00:26]}  Qb7 {[%clk 0:02:07]} 24. Rc2 {[%clk 0:00:26]}  Bd7 {[%clk 0:02:07]} 25. Nc1 {[%clk 0:00:27]}  Rc4 {[%clk 0:02:03]} 26. Nb3 {[%clk 0:00:23]}  Qc8 {[%clk 0:01:57]} 27. Na5 {[%clk 0:00:18]}  h5 {[%clk 0:01:45]} 28. Nxc4 {[%clk 0:00:17]}  dxc4 {[%clk 0:01:46]} 29. Bf1 {[%clk 0:00:17]}  h4 {[%clk 0:01:47]} 30. Bg2 {[%clk 0:00:17]}  hxg3 {[%clk 0:01:47]} 31. hxg3 {[%clk 0:00:18]}  Qd8 {[%clk 0:01:43]} 32. d5 {[%clk 0:00:18]}  e5 {[%clk 0:01:43]} 33. Qc1 {[%clk 0:00:14]}  f6 {[%clk 0:01:41]} 34. Qd1 {[%clk 0:00:13]}  Be8 {[%clk 0:01:41]} 35. Qf3 {[%clk 0:00:13]}  Bg6 {[%clk 0:01:41]} 36. Rc1 {[%clk 0:00:13]}  Qd7 {[%clk 0:01:20]} 37. Rd1 {[%clk 0:00:10]}  Qh7 {[%clk 0:01:20]} 38. Rd2 {[%clk 0:00:07]}  Bh5 {[%clk 0:01:18]} 39. g4 {[%clk 0:00:07]}  fxg4 {[%clk 0:01:14]} 40. Qg3 {[%clk 0:00:08]}  f5 {[%clk 0:01:15]} 41. f3 {[%clk 0:00:07]}  Bg6 {[%clk 0:01:01]} 42. fxg4 {[%clk 0:00:07]}  f4 {[%clk 0:01:02]} 43. exf4 {[%clk 0:00:07]}  exf4 {[%clk 0:01:01]} 44. Qf3 {[%clk 0:00:07]}  Qa7+ {[%clk 0:01:01]} 45. Kh1 {[%clk 0:00:06]}  Qe7 {[%clk 0:01:00]} 46. Re2 {[%clk 0:00:06]}  Qh7+ {[%clk 0:00:59]} 47. Bh3 {[%clk 0:00:06]}  Bd3 {[%clk 0:00:45]} 48. Re8+ {[%clk 0:00:06]}  Kf7 {[%clk 0:00:45]} 49. Re6 {[%clk 0:00:07]}  Bb8 {[%clk 0:00:32]} 50. Kg2 {[%clk 0:00:07]}  c3 {[%clk 0:00:32]} 51. g5 {[%clk 0:00:07]}  c2 {[%clk 0:00:31]} 52. Rh6 {[%clk 0:00:07]}  Qe4 {[%clk 0:00:30]} 53. Rh7+ {[%clk 0:00:06]}  Qxh7 {[%clk 0:00:28]} 54. g6+ {[%clk 0:00:06]}  Qxg6+ {[%clk 0:00:29]} 55. Kh2 {[%clk 0:00:07]}  c1=Q {[%clk 0:00:29]} 0-1


[Site "https://www.chess.com"]

[Event "Titled Tuesday Blitz April 4 Early 2023"]
[White "Kollars, Dmitrij"]
[Black "Mortazavi, Ali"]
[WhiteFideId "12909572"]
[BlackFideId "401323"]
[WhiteElo "2584"]
[BlackElo "2339"]
[Result "1-0"]
[Round "08"]
[TimeControl "180+2"]
[Date "2023.04.04"]
[WhiteClock "0:01:09"]
[BlackClock "0:01:03"]

1. c4 {[%clk 0:03:00]}  g6 {[%clk 0:02:59]} 2. g3 {[%clk 0:02:59]}  Bg7 {[%clk 0:03:00]} 3. Bg2 {[%clk 0:02:59]}  d6 {[%clk 0:03:01]} 4. Nc3 {[%clk 0:02:59]}  Nf6 {[%clk 0:03:02]} 5. Nf3 {[%clk 0:03:00]}  O-O {[%clk 0:03:03]} 6. O-O {[%clk 0:03:00]}  e5 {[%clk 0:03:02]} 7. d4 {[%clk 0:03:00]}  Nbd7 {[%clk 0:03:02]} 8. e4 {[%clk 0:03:00]}  c6 {[%clk 0:03:03]} 9. h3 {[%clk 0:02:59]}  Qa5 {[%clk 0:03:03]} 10. d5 {[%clk 0:02:58]}  cxd5 {[%clk 0:03:02]} 11. cxd5 {[%clk 0:02:58]}  Nc5 {[%clk 0:03:02]} 12. Nd2 {[%clk 0:02:57]}  b5 {[%clk 0:02:57]} 13. a3 {[%clk 0:02:51]}  b4 {[%clk 0:02:35]} 14. Nc4 {[%clk 0:02:50]}  Qa6 {[%clk 0:02:27]} 15. axb4 {[%clk 0:02:50]}  Qxa1 {[%clk 0:02:24]} 16. bxc5 {[%clk 0:02:51]}  dxc5 {[%clk 0:02:24]} 17. Na3 {[%clk 0:02:02]}  Rb8 {[%clk 0:02:05]} 18. Qc2 {[%clk 0:01:54]}  Rb4 {[%clk 0:01:41]} 19. b3 {[%clk 0:01:47]}  Ba6 {[%clk 0:01:21]} 20. Bb2 {[%clk 0:01:36]}  Qxb2 {[%clk 0:01:17]} 21. Qxb2 {[%clk 0:01:36]}  Bxf1 {[%clk 0:01:17]} 22. Bxf1 {[%clk 0:01:26]}  Rfb8 {[%clk 0:01:15]} 23. Bc4 {[%clk 0:01:25]}  Ne8 {[%clk 0:01:13]} 24. Ncb5 {[%clk 0:01:09]}  a6 {[%clk 0:01:07]} 25. Na7 {[%clk 0:01:09]}  Nd6 {[%clk 0:01:05]} 26. Nc6 {[%clk 0:01:09]}  Nxc4 {[%clk 0:01:03]} 27. Nxc4 {[%clk 0:01:09]}  Rxb3 {[%clk 0:01:03]} 28. Nxb8 {[%clk 0:01:08]}  Rxb2 {[%clk 0:01:03]} 29. Nxb2 {[%clk 0:01:09]} 1-0


[Site "https://www.chess.com"]

[Event "Titled Tuesday Blitz April 4 Early 2023"]
[White "Yeletsky, Ivan"]
[Black "Poliakova, Varvara"]
[WhiteFideId "24180327"]
[BlackFideId "13518313"]
[WhiteElo "2422"]
[BlackElo "2075"]
[Result "1-0"]
[Round "08"]
[TimeControl "180+2"]
[Date "2023.04.04"]
[WhiteClock "0:01:05"]
[BlackClock "0:00:45"]

1. d4 {[%clk 0:03:00]}  f5 {[%clk 0:02:59]} 2. Bf4 {[%clk 0:02:59]}  d6 {[%clk 0:02:59]} 3. Nc3 {[%clk 0:02:59]}  Nf6 {[%clk 0:02:57]} 4. e3 {[%clk 0:02:57]}  g6 {[%clk 0:02:56]} 5. h4 {[%clk 0:02:56]}  h6 {[%clk 0:02:44]} 6. Qf3 {[%clk 0:02:55]}  Bg7 {[%clk 0:02:38]} 7. Bc4 {[%clk 0:02:51]}  e6 {[%clk 0:02:38]} 8. Nge2 {[%clk 0:02:46]}  O-O {[%clk 0:02:27]} 9. O-O-O {[%clk 0:02:46]}  Nc6 {[%clk 0:02:24]} 10. Qg3 {[%clk 0:02:36]}  Kh7 {[%clk 0:02:22]} 11. f3 {[%clk 0:02:36]}  Ne7 {[%clk 0:02:18]} 12. Qh2 {[%clk 0:02:30]}  Ned5 {[%clk 0:02:10]} 13. Rhg1 {[%clk 0:02:26]}  Nxc3 {[%clk 0:02:05]} 14. Nxc3 {[%clk 0:02:26]}  a6 {[%clk 0:02:00]} 15. g4 {[%clk 0:02:24]}  b5 {[%clk 0:01:58]} 16. Bd3 {[%clk 0:02:22]}  Rb8 {[%clk 0:01:53]} 17. gxf5 {[%clk 0:02:13]}  exf5 {[%clk 0:01:51]} 18. Rg2 {[%clk 0:02:07]}  Nh5 {[%clk 0:01:49]} 19. Rdg1 {[%clk 0:02:07]}  Qe8 {[%clk 0:01:44]} 20. Rxg6 {[%clk 0:02:05]}  Qxg6 {[%clk 0:01:44]} 21. Rxg6 {[%clk 0:02:06]}  Kxg6 {[%clk 0:01:45]} 22. Nd5 {[%clk 0:02:06]}  Nxf4 {[%clk 0:01:41]} 23. Qxf4 {[%clk 0:02:04]}  Rf7 {[%clk 0:01:39]} 24. Nxc7 {[%clk 0:02:00]}  Bf8 {[%clk 0:01:36]} 25. Nd5 {[%clk 0:01:50]}  Be6 {[%clk 0:01:31]} 26. Qg3+ {[%clk 0:01:39]}  Kh7 {[%clk 0:01:32]} 27. Nf4 {[%clk 0:01:39]}  Rg7 {[%clk 0:01:29]} 28. Qh3 {[%clk 0:01:39]}  Bf7 {[%clk 0:01:26]} 29. Bxf5+ {[%clk 0:01:35]}  Kg8 {[%clk 0:01:26]} 30. Be6 {[%clk 0:01:35]}  Re8 {[%clk 0:01:23]} 31. Bxf7+ {[%clk 0:01:35]}  Rxf7 {[%clk 0:01:20]} 32. Nd5 {[%clk 0:01:34]}  Bg7 {[%clk 0:01:17]} 33. c3 {[%clk 0:01:33]}  a5 {[%clk 0:01:13]} 34. a3 {[%clk 0:01:30]}  Rb8 {[%clk 0:01:13]} 35. Kd2 {[%clk 0:01:29]}  b4 {[%clk 0:01:10]} 36. axb4 {[%clk 0:01:28]}  axb4 {[%clk 0:01:11]} 37. Nxb4 {[%clk 0:01:29]}  Rbf8 {[%clk 0:01:08]} 38. Qe6 {[%clk 0:01:28]}  Kh7 {[%clk 0:01:06]} 39. f4 {[%clk 0:01:28]}  Ra7 {[%clk 0:01:04]} 40. Kd3 {[%clk 0:01:24]}  Ra1 {[%clk 0:01:01]} 41. Qxd6 {[%clk 0:01:19]}  Rd1+ {[%clk 0:00:57]} 42. Kc2 {[%clk 0:01:19]}  Rh1 {[%clk 0:00:56]} 43. Qe7 {[%clk 0:01:16]}  Rh2+ {[%clk 0:00:53]} 44. Kb3 {[%clk 0:01:16]}  Kg8 {[%clk 0:00:51]} 45. Qe6+ {[%clk 0:01:16]}  Kh8 {[%clk 0:00:50]} 46. d5 {[%clk 0:01:13]}  Rd2 {[%clk 0:00:48]} 47. f5 {[%clk 0:01:09]}  Rf6 {[%clk 0:00:46]} 48. Qe8+ {[%clk 0:01:09]}  Kh7 {[%clk 0:00:47]} 49. e4 {[%clk 0:01:08]}  Re2 {[%clk 0:00:45]} 50. h5 {[%clk 0:01:06]}  Rxf5 {[%clk 0:00:45]} 51. Qg6+ {[%clk 0:01:05]} 1-0


[Site "https://www.chess.com"]